[Event "*** Titled Tuesday 3|2 Blitz"]
[Site "Chess.com"]
[Date "2015.08.04"]
[Round "6"]
[White "alturas_pacificas"]
[Black "GregShahade"]
[Result "1/2-1/2"]
[WhiteElo "2095"]
[BlackElo "2294"]
[TimeControl "180+2"]
[EndTime "12:53:21 PDT"]
[Termination "Game drawn - insufficient material"]

1. d4 {[%clk 0:03:01.9]} 1... Nf6 {[%clk 0:02:57.8]} 2. Bf4 {[%clk 0:03:02.8]}
2... e6 {[%clk 0:02:55.5]} 3. e3 {[%clk 0:03:03.4]} 3... c5 {[%clk 0:02:56.3]}
4. c3 {[%clk 0:02:57.8]} 4... b6 {[%clk 0:02:56.4]} 5. Nf3 {[%clk 0:02:58]} 5...
Bb7 {[%clk 0:02:56.9]} 6. Nbd2 {[%clk 0:02:59.3]} 6... Be7 {[%clk 0:02:56.4]} 7.
h3 {[%clk 0:02:57.4]} 7... O-O {[%clk 0:02:57.1]} 8. Bd3 {[%clk 0:02:57.1]} 8...
cxd4 {[%clk 0:02:57.2]} 9. cxd4 {[%clk 0:02:47.5]} 9... Nc6 {[%clk 0:02:53.7]}
10. Rc1 {[%clk 0:02:43]} 10... Rc8 {[%clk 0:02:50.1]} 11. O-O {[%clk 0:02:43.5]}
11... d6 {[%clk 0:02:45]} 12. a3 {[%clk 0:02:42.3]} 12... a6 {[%clk 0:02:42.4]}
13. Qe2 {[%clk 0:02:41.9]} 13... b5 {[%clk 0:02:41.8]} 14. Rc2 {[%clk
0:02:28.5]} 14... Nd5 {[%clk 0:02:40.5]} 15. Bg3 {[%clk 0:02:27.3]} 15... Re8
{[%clk 0:02:39]} 16. Rfc1 {[%clk 0:02:26.2]} 16... Qd7 {[%clk 0:02:37.6]} 17.
Ne4 {[%clk 0:02:12.6]} 17... Na5 {[%clk 0:02:16.5]} 18. Rxc8 {[%clk 0:01:49.7]}
18... Rxc8 {[%clk 0:02:18.4]} 19. Rxc8+ {[%clk 0:01:50.1]} 19... Bxc8 {[%clk
0:02:18.6]} 20. b4 {[%clk 0:01:45.2]} 20... Nc6 {[%clk 0:02:14.3]} 21. Qc2
{[%clk 0:01:45]} 21... Bb7 {[%clk 0:02:09]} 22. Nc3 {[%clk 0:01:07.7]} 22... Nb6
{[%clk 0:02:03.4]} 23. Bxh7+ {[%clk 0:01:06.2]} 23... Kf8 {[%clk 0:01:56.7]} 24.
Bd3 {[%clk 0:01:06.2]} 24... Na7 {[%clk 0:01:47.1]} 25. Nd2 {[%clk 0:00:49.2]}
25... Qc7 {[%clk 0:01:45.1]} 26. Nce4 {[%clk 0:00:45.8]} 26... Qd8 {[%clk
0:01:33.3]} 27. Nb3 {[%clk 0:00:34.6]} 27... Nc6 {[%clk 0:01:21.3]} 28. Ned2
{[%clk 0:00:31.1]} 28... g6 {[%clk 0:01:15.8]} 29. Be4 {[%clk 0:00:29.1]} 29...
Qd7 {[%clk 0:01:15]} 30. h4 {[%clk 0:00:23.4]} 30... Kg7 {[%clk 0:01:11.4]} 31.
Bf3 {[%clk 0:00:21.3]} 31... Nd8 {[%clk 0:00:46.3]} 32. h5 {[%clk 0:00:20.8]}
32... Bxf3 {[%clk 0:00:44.3]} 33. Nxf3 {[%clk 0:00:19.6]} 33... gxh5 {[%clk
0:00:45]} 34. Bh4 {[%clk 0:00:16.1]} 34... Bxh4 {[%clk 0:00:42.6]} 35. Nxh4
{[%clk 0:00:17.3]} 35... Nc4 {[%clk 0:00:42.6]} 36. Qe2 {[%clk 0:00:15.7]} 36...
Kh6 {[%clk 0:00:39]} 37. Qa2 {[%clk 0:00:09.9]} 37... Qe7 {[%clk 0:00:37.9]} 38.
Nf3 {[%clk 0:00:10.6]} 38... Nc6 {[%clk 0:00:38.4]} 39. Nbd2 {[%clk 0:00:10.4]}
39... d5 {[%clk 0:00:37.4]} 40. Nxc4 {[%clk 0:00:11.2]} 40... dxc4 {[%clk
0:00:37.4]} 41. Qd2 {[%clk 0:00:11.2]} 41... Kg7 {[%clk 0:00:29.1]} 42. d5
{[%clk 0:00:12]} 42... exd5 {[%clk 0:00:23]} 43. Qxd5 {[%clk 0:00:13.5]} 43...
Qf6 {[%clk 0:00:24.5]} 44. Qxh5 {[%clk 0:00:12.5]} 44... c3 {[%clk 0:00:25.4]}
45. Qg4+ {[%clk 0:00:13.3]} 45... Qg6 {[%clk 0:00:22.6]} 46. Qxg6+ {[%clk
0:00:09.3]} 46... Kxg6 {[%clk 0:00:23]} 47. Ne1 {[%clk 0:00:10.8]} 47... a5
{[%clk 0:00:24.4]} 48. Nc2 {[%clk 0:00:11.6]} 48... Kf5 {[%clk 0:00:23.7]} 49.
Kf1 {[%clk 0:00:12.4]} 49... Ke4 {[%clk 0:00:21.7]} 50. Ke2 {[%clk 0:00:13.5]}
50... axb4 {[%clk 0:00:22.5]} 51. f3+ {[%clk 0:00:13.9]} 51... Kd5 {[%clk
0:00:22.1]} 52. axb4 {[%clk 0:00:13.4]} 52... Kc4 {[%clk 0:00:21.9]} 53. f4
{[%clk 0:00:12.7]} 53... Nxb4 {[%clk 0:00:21.9]} 54. Na3+ {[%clk 0:00:10.4]}
54... Kc5 {[%clk 0:00:20.8]} 55. g4 {[%clk 0:00:10.1]} 55... Nd5 {[%clk
0:00:19.9]} 56. Kd3 {[%clk 0:00:08.9]} 56... b4 {[%clk 0:00:20.5]} 57. Nb1
{[%clk 0:00:05.1]} 57... Nxe3 {[%clk 0:00:13.6]} 58. Nxc3 {[%clk 0:00:05.2]}
58... Nxg4 {[%clk 0:00:13]} 59. Ne4+ {[%clk 0:00:06.1]} 59... Kb5 {[%clk
0:00:13.8]} 60. Nd6+ {[%clk 0:00:06.6]} 60... Ka4 {[%clk 0:00:14.7]} 61. Nxf7
{[%clk 0:00:07.9]} 61... b3 {[%clk 0:00:14.6]} 62. Nd6 {[%clk 0:00:09.3]} 62...
Ka3 {[%clk 0:00:11.8]} 63. Nc4+ {[%clk 0:00:09.9]} 63... Ka2 {[%clk 0:00:13]}
64. f5 {[%clk 0:00:10.8]} 64... Nf6 {[%clk 0:00:13.7]} 65. Kd4 {[%clk
0:00:10.2]} 65... Nd7 {[%clk 0:00:13.7]} 66. Ke4 {[%clk 0:00:05.9]} 66... Nb6
{[%clk 0:00:13]} 67. Nd2 {[%clk 0:00:06.1]} 67... b2 {[%clk 0:00:12.4]} 68. f6
{[%clk 0:00:07.3]} 68... Nc4 {[%clk 0:00:13.1]} 69. f7 {[%clk 0:00:04]} 69...
Nxd2+ {[%clk 0:00:13.2]} 70. Ke3 {[%clk 0:00:05.4]} 70... Nc4+ {[%clk
0:00:12.5]} 71. Kd4 {[%clk 0:00:03.9]} 71... b1=Q {[%clk 0:00:10.9]} 72. f8=Q
{[%clk 0:00:05.3]} 72... Na3 {[%clk 0:00:08.7]} 73. Qf7+ {[%clk 0:00:06.1]}
73... Ka1 {[%clk 0:00:06.8]} 74. Ke5 {[%clk 0:00:04.3]} 74... Qe1+ {[%clk
0:00:07.1]} 75. Kf6 {[%clk 0:00:05.6]} 75... Qf2+ {[%clk 0:00:07.7]} 76. Kg7
{[%clk 0:00:06.8]} 76... Qg3+ {[%clk 0:00:08.5]} 77. Qg6 {[%clk 0:00:08.3]}
77... Qc7+ {[%clk 0:00:08.8]} 78. Qf7 {[%clk 0:00:09.5]} 78... Qc1 {[%clk
0:00:09.5]} 79. Qf6+ {[%clk 0:00:10]} 79... Ka2 {[%clk 0:00:10.6]} 80. Kg6
{[%clk 0:00:09.8]} 80... Nc4 {[%clk 0:00:11]} 81. Qa6+ {[%clk 0:00:10.5]} 81...
Kb3 {[%clk 0:00:11.4]} 82. Qb5+ {[%clk 0:00:11.8]} 82... Kc3 {[%clk 0:00:12.1]}
83. Qf5 {[%clk 0:00:10.5]} 83... Qg1+ {[%clk 0:00:11.9]} 84. Kf6 {[%clk
0:00:09.6]} 84... Qb6+ {[%clk 0:00:11.7]} 85. Qe6 {[%clk 0:00:09.9]} 85... Qd4+
{[%clk 0:00:12.4]} 86. Kf5 {[%clk 0:00:09.9]} 86... Nd6+ {[%clk 0:00:12.3]} 87.
Kg6 {[%clk 0:00:08.2]} 87... Qd3+ {[%clk 0:00:11.2]} 88. Kf6 {[%clk 0:00:08.2]}
88... Qd4+ {[%clk 0:00:11.7]} 89. Qe5 {[%clk 0:00:04.4]} 89... Ne4+ {[%clk
0:00:12.4]} 90. Kf5 {[%clk 0:00:05.1]} 90... Nd6+ {[%clk 0:00:11.8]} 91. Kf6
{[%clk 0:00:06.1]} 91... Ne8+ {[%clk 0:00:10.9]} 92. Kf5 {[%clk 0:00:07.4]}
92... Ng7+ {[%clk 0:00:11.7]} 93. Kf6 {[%clk 0:00:08.7]} 93... Nh5+ {[%clk
0:00:12.5]} 94. Kf5 {[%clk 0:00:10.1]} 94... Ng7+ {[%clk 0:00:12.2]} 95. Kf6
{[%clk 0:00:11.4]} 95... Qxe5+ {[%clk 0:00:12]} 96. Kxe5 {[%clk 0:00:12.4]}
1/2-1/2

[Event "*** Titled Tuesday 3|2 Blitz"]
[Site "Chess.com"]
[Date "2015.08.04"]
[Round "7"]
[White "drifblim"]
[Black "Fawolizzo"]
[Result "0-1"]
[WhiteElo "2034"]
[BlackElo "1921"]
[TimeControl "180+2"]
[EndTime "12:58:25 PDT"]
[Termination "Fawolizzo won by resignation"]

1. e4 {[%clk 0:03:01.9]} 1... c5 {[%clk 0:02:59.7]} 2. Nf3 {[%clk 0:03:01.3]}
2... d6 {[%clk 0:02:59.5]} 3. d4 {[%clk 0:03:03.2]} 3... cxd4 {[%clk 0:02:59.1]}
4. Nxd4 {[%clk 0:03:05.1]} 4... Nf6 {[%clk 0:02:59.9]} 5. Nc3 {[%clk 0:03:06.2]}
5... a6 {[%clk 0:03:00.1]} 6. Be3 {[%clk 0:03:07.4]} 6... Ng4 {[%clk 0:02:59.9]}
7. Bg5 {[%clk 0:03:08.2]} 7... h6 {[%clk 0:03:00]} 8. Bh4 {[%clk 0:03:09.5]}
8... g5 {[%clk 0:03:00.8]} 9. Bg3 {[%clk 0:03:10.9]} 9... Bg7 {[%clk 0:03:01.4]}
10. Be2 {[%clk 0:03:11.7]} 10... Ne5 {[%clk 0:03:00.7]} 11. O-O {[%clk
0:03:11.6]} 11... Nbc6 {[%clk 0:03:00.7]} 12. Nf5 {[%clk 0:03:09.8]} 12... Bxf5
{[%clk 0:02:52.8]} 13. exf5 {[%clk 0:03:10.6]} 13... O-O {[%clk 0:02:48.7]} 14.
Kh1 {[%clk 0:02:57.2]} 14... Rc8 {[%clk 0:02:47.4]} 15. f4 {[%clk 0:02:57.2]}
15... gxf4 {[%clk 0:02:37.3]} 16. Bxf4 {[%clk 0:02:58.3]} 16... Kh7 {[%clk
0:02:29.5]} 17. Bd3 {[%clk 0:02:38.3]} 17... Nxd3 {[%clk 0:01:43.7]} 18. Qxd3
{[%clk 0:02:37.8]} 18... Ne5 {[%clk 0:01:40.2]} 19. Bxe5 {[%clk 0:02:30.6]}
19... dxe5 {[%clk 0:01:39.8]} 20. Qe4 {[%clk 0:02:29.9]} 20... Bf6 {[%clk
0:01:22]} 21. Rad1 {[%clk 0:02:18.4]} 21... Qb6 {[%clk 0:01:17.4]} 22. b3 {[%clk
0:01:48.3]} 22... Rxc3 {[%clk 0:01:12.8]} 0-1

[Event "*** Titled Tuesday 3|2 Blitz"]
[Site "Chess.com"]
[Date "2015.08.04"]
[Round "7"]
[White "tac49"]
[Black "Tobi-Wan-Kenobi"]
[Result "1-0"]
[WhiteElo "2473"]
[BlackElo "2389"]
[TimeControl "180+2"]
[EndTime "12:59:25 PDT"]
[Termination "tac49 won by resignation"]

1. e4 {[%clk 0:03:01.9]} 1... c5 {[%clk 0:02:51.2]} 2. Nf3 {[%clk 0:02:59.9]}
2... d6 {[%clk 0:02:51]} 3. d4 {[%clk 0:02:59.5]} 3... cxd4 {[%clk 0:02:51.3]}
4. Qxd4 {[%clk 0:02:58.1]} 4... a6 {[%clk 0:02:42.9]} 5. Bc4 {[%clk 0:02:56.1]}
5... Nc6 {[%clk 0:02:28.2]} 6. Qd3 {[%clk 0:02:55.7]} 6... Nf6 {[%clk
0:02:21.9]} 7. Nc3 {[%clk 0:02:54.8]} 7... Bg4 {[%clk 0:02:12.7]} 8. Bg5 {[%clk
0:02:53.5]} 8... Bxf3 {[%clk 0:01:55.2]} 9. gxf3 {[%clk 0:02:53.6]} 9... Ne5
{[%clk 0:01:55.4]} 10. Qe2 {[%clk 0:02:54.1]} 10... Nxc4 {[%clk 0:01:54.6]} 11.
Qxc4 {[%clk 0:02:54.5]} 11... Rc8 {[%clk 0:01:49.4]} 12. Qb3 {[%clk 0:02:55]}
12... Qc7 {[%clk 0:01:35.9]} 13. O-O-O {[%clk 0:02:45]} 13... e6 {[%clk
0:01:34.9]} 14. Bxf6 {[%clk 0:02:41.2]} 14... gxf6 {[%clk 0:01:36.8]} 15. Kb1
{[%clk 0:02:42.7]} 15... Rg8 {[%clk 0:01:31]} 16. f4 {[%clk 0:02:42.2]} 16... b5
{[%clk 0:01:24.9]} 17. Rd4 {[%clk 0:02:24.6]} 17... Bh6 {[%clk 0:01:14.8]} 18.
f5 {[%clk 0:02:24.2]} 18... Ke7 {[%clk 0:01:09.2]} 19. Rhd1 {[%clk 0:02:05.2]}
19... Bf4 {[%clk 0:01:08.1]} 20. Ne2 {[%clk 0:01:53.4]} 20... Be5 {[%clk
0:01:07]} 21. R4d2 {[%clk 0:01:53.5]} 21... Qc4 {[%clk 0:01:03.9]} 22. f4 {[%clk
0:01:52.7]} 22... Qxe4 {[%clk 0:00:49.5]} 23. fxe5 {[%clk 0:01:52.3]} 23... fxe5
{[%clk 0:00:50.9]} 24. fxe6 {[%clk 0:01:51.4]} 24... fxe6 {[%clk 0:00:44.6]} 25.
Rxd6 {[%clk 0:01:49.1]} 25... Rc6 {[%clk 0:00:39.2]} 26. Qxe6+ {[%clk
0:01:47.9]} 1-0

[Event "*** Titled Tuesday 3|2 Blitz"]
[Site "Chess.com"]
[Date "2015.08.04"]
[Round "7"]
[White "Hikaru"]
[Black "Mugzyyy"]
[Result "1-0"]
[WhiteElo "2853"]
[BlackElo "2607"]
[TimeControl "180+2"]
[EndTime "13:00:00 PDT"]
[Termination "Hikaru won by resignation"]

1. b3 {[%clk 0:03:01.9]} 1... Nf6 {[%clk 0:03:00.6]} 2. Bb2 {[%clk 0:03:03.5]}
2... d6 {[%clk 0:03:02.2]} 3. e3 {[%clk 0:03:00.4]} 3... g6 {[%clk 0:03:03.5]}
4. Bxf6 {[%clk 0:02:59.9]} 4... exf6 {[%clk 0:03:03.7]} 5. d4 {[%clk 0:03:01.8]}
5... Bg7 {[%clk 0:03:05.2]} 6. c4 {[%clk 0:03:03.2]} 6... O-O {[%clk 0:03:06.9]}
7. Nc3 {[%clk 0:03:04.8]} 7... f5 {[%clk 0:03:08.5]} 8. Nge2 {[%clk 0:03:05.5]}
8... c5 {[%clk 0:03:09.4]} 9. g3 {[%clk 0:02:58.2]} 9... Nc6 {[%clk 0:03:01.6]}
10. Bg2 {[%clk 0:02:58.2]} 10... f4 {[%clk 0:02:57.7]} 11. d5 {[%clk 0:02:38.1]}
11... fxe3 {[%clk 0:02:46.5]} 12. dxc6 {[%clk 0:02:37]} 12... exf2+ {[%clk
0:02:48]} 13. Kf1 {[%clk 0:02:38.6]} 13... bxc6 {[%clk 0:02:48.1]} 14. Bxc6
{[%clk 0:02:37.8]} 14... Bg4 {[%clk 0:02:37.9]} 15. Qd3 {[%clk 0:02:08.3]} 15...
Bxe2+ {[%clk 0:01:47.6]} 16. Kxe2 {[%clk 0:02:10.2]} 16... Rc8 {[%clk
0:01:30.4]} 17. Ba4 {[%clk 0:01:47.5]} 17... Qf6 {[%clk 0:01:19.8]} 18. Rac1
{[%clk 0:01:43.6]} 18... Bh6 {[%clk 0:00:47.9]} 19. Nd5 {[%clk 0:01:38.1]} 19...
Qe6+ {[%clk 0:00:27.4]} 20. Kxf2 {[%clk 0:01:37.7]} 20... Bxc1 {[%clk
0:00:27.4]} 21. Rxc1 {[%clk 0:01:39.6]} 21... Kg7 {[%clk 0:00:27.4]} 22. Re1
{[%clk 0:01:39]} 22... Qh3 {[%clk 0:00:25.7]} 23. Qc3+ {[%clk 0:01:40.2]} 23...
Kh6 {[%clk 0:00:26.9]} 24. Kg1 {[%clk 0:01:39.7]} 24... Qg4 {[%clk 0:00:22.6]}
25. Nf6 {[%clk 0:01:33.9]} 25... Qd4+ {[%clk 0:00:22.9]} 26. Qxd4 {[%clk
0:01:34.8]} 26... cxd4 {[%clk 0:00:24.5]} 27. Rd1 {[%clk 0:01:34.6]} 27... Kg7
{[%clk 0:00:26]} 28. Nd5 {[%clk 0:01:32.7]} 28... Rce8 {[%clk 0:00:27.1]} 29.
Bxe8 {[%clk 0:01:32.9]} 29... Rxe8 {[%clk 0:00:27.8]} 30. Kf2 {[%clk 0:01:34.2]}
1-0

[Event "*** Titled Tuesday 3|2 Blitz"]
[Site "Chess.com"]
[Date "2015.08.04"]
[Round "7"]
[White "ViktoriaGloriam"]
[Black "ChessWarrior7197"]
[Result "1-0"]
[WhiteElo "2204"]
[BlackElo "2424"]
[TimeControl "180+2"]
[EndTime "13:00:01 PDT"]
[Termination "ViktoriaGloriam won - game abandoned"]

1. e4 {[%clk 0:03:01.9]} 1... e5 {[%clk 0:02:55.7]} 2. Nf3 {[%clk 0:03:02.6]}
2... Nc6 {[%clk 0:02:56.5]} 3. d4 {[%clk 0:03:04]} 3... exd4 {[%clk 0:02:57.1]}
4. Nxd4 {[%clk 0:03:05.9]} 4... Bb4+ {[%clk 0:02:58]} 5. c3 {[%clk 0:03:05.7]}
5... Bc5 {[%clk 0:02:59]} 6. Be3 {[%clk 0:03:06.3]} 6... Bb6 {[%clk 0:03:00]} 7.
Be2 {[%clk 0:03:03.7]} 7... Nf6 {[%clk 0:02:58.7]} 8. Nd2 {[%clk 0:03:04.7]}
8... O-O {[%clk 0:02:58]} 9. O-O {[%clk 0:03:05.5]} 9... Re8 {[%clk 0:02:57.5]}
10. Nxc6 {[%clk 0:02:59.5]} 10... bxc6 {[%clk 0:02:57.5]} 11. Bxb6 {[%clk
0:02:57.4]} 11... axb6 {[%clk 0:02:58.2]} 12. Bf3 {[%clk 0:02:50.2]} 12... d5
{[%clk 0:02:52.2]} 13. exd5 {[%clk 0:02:50.8]} 13... cxd5 {[%clk 0:02:50.9]} 14.
Nb3 {[%clk 0:02:30.2]} 14... Bb7 {[%clk 0:02:51.1]} 15. a3 {[%clk 0:02:26.3]}
15... c5 {[%clk 0:02:51.6]} 16. Re1 {[%clk 0:02:23.4]} 16... Qc7 {[%clk
0:02:52.1]} 17. Qd2 {[%clk 0:02:21.7]} 17... h6 {[%clk 0:02:48]} 18. Rxe8+
{[%clk 0:02:21.7]} 18... Rxe8 {[%clk 0:02:48.2]} 19. Re1 {[%clk 0:02:23.6]}
19... Re5 {[%clk 0:02:45.2]} 20. h3 {[%clk 0:02:22.1]} 20... Qe7 {[%clk
0:02:44]} 21. Rxe5 {[%clk 0:02:20.2]} 21... Qxe5 {[%clk 0:02:44.9]} 22. Qe2
{[%clk 0:02:21.8]} 22... Qd6 {[%clk 0:02:39.3]} 23. Nd2 {[%clk 0:02:18.9]} 23...
g6 {[%clk 0:02:39.1]} 24. Nc4 {[%clk 0:02:13.8]} 24... Qc7 {[%clk 0:02:34.5]}
25. Qe5 {[%clk 0:02:13.2]} 25... Qxe5 {[%clk 0:02:18.6]} 26. Nxe5 {[%clk
0:02:15.1]} 26... Kf8 {[%clk 0:02:19.2]} 27. Kf1 {[%clk 0:02:15.6]} 27... Ke7
{[%clk 0:02:19.6]} 28. Ke2 {[%clk 0:02:12.3]} 28... Ba6+ {[%clk 0:02:20.3]} 29.
Ke3 {[%clk 0:02:08.2]} 29... Kd6 {[%clk 0:02:20.1]} 30. Nxf7+ {[%clk 0:02:04.6]}
30... Ke6 {[%clk 0:02:12.5]} 31. Nxh6 {[%clk 0:02:06.5]} 31... Bc4 {[%clk
0:02:10.5]} 32. Ng4 {[%clk 0:02:05.4]} 32... Nd7 {[%clk 0:02:11.3]} 33. Kf4
{[%clk 0:02:01.3]} 33... d4 {[%clk 0:02:05.3]} 34. cxd4 {[%clk 0:02:00]} 34...
cxd4 {[%clk 0:02:06]} 35. Ke4 {[%clk 0:01:51.1]} 35... d3 {[%clk 0:02:05]} 36.
Ke3 {[%clk 0:01:51.9]} 36... Nc5 {[%clk 0:02:03.8]} 37. Nh2 {[%clk 0:01:32.7]}
1-0

[Event "*** Titled Tuesday 3|2 Blitz"]
[Site "Chess.com"]
[Date "2015.08.04"]
[Round "7"]
[White "dretch"]
[Black "lexiel"]
[Result "1-0"]
[WhiteElo "2545"]
[BlackElo "2293"]
[TimeControl "180+2"]
[EndTime "13:00:09 PDT"]
[Termination "dretch won by resignation"]

1. d4 {[%clk 0:03:01.9]} 1... Nf6 {[%clk 0:02:55.1]} 2. c4 {[%clk 0:03:02.6]}
2... d6 {[%clk 0:02:55.6]} 3. Nf3 {[%clk 0:03:03.4]} 3... c6 {[%clk 0:02:52.9]}
4. Nc3 {[%clk 0:03:03.8]} 4... Bf5 {[%clk 0:02:51.5]} 5. Nh4 {[%clk 0:03:00.2]}
5... Bg4 {[%clk 0:02:40.1]} 6. h3 {[%clk 0:02:58.5]} 6... Bh5 {[%clk 0:02:39.3]}
7. g4 {[%clk 0:02:58.2]} 7... Bg6 {[%clk 0:02:40.2]} 8. Bg2 {[%clk 0:02:58.7]}
8... Nbd7 {[%clk 0:02:37]} 9. g5 {[%clk 0:02:56.4]} 9... Nh5 {[%clk 0:02:31.7]}
10. Bf3 {[%clk 0:02:50.6]} 10... e5 {[%clk 0:02:30.5]} 11. d5 {[%clk 0:02:21.4]}
11... Be7 {[%clk 0:02:14.5]} 12. dxc6 {[%clk 0:02:07]} 12... bxc6 {[%clk
0:02:14.4]} 13. Bxc6 {[%clk 0:02:08.7]} 13... Rc8 {[%clk 0:02:14.3]} 14. Qa4
{[%clk 0:02:06.6]} 14... Rxc6 {[%clk 0:02:05.1]} 15. Qxc6 {[%clk 0:02:05.9]}
15... O-O {[%clk 0:02:06.4]} 16. Nxg6 {[%clk 0:02:01]} 16... fxg6 {[%clk
0:02:01.3]} 17. Be3 {[%clk 0:01:56.5]} 17... Nf4 {[%clk 0:01:46.8]} 18. O-O-O
{[%clk 0:01:52.8]} 18... Nb8 {[%clk 0:01:17.4]} 19. Qb7 {[%clk 0:01:40]} 19...
Bxg5 {[%clk 0:01:15.9]} 20. Kb1 {[%clk 0:01:35.5]} 20... Rf7 {[%clk 0:01:12.3]}
21. Qa8 {[%clk 0:01:32]} 21... Qc8 {[%clk 0:01:01.4]} 22. Nb5 {[%clk 0:01:18.6]}
22... Rf8 {[%clk 0:00:53.6]} 23. Nxd6 {[%clk 0:01:15.4]} 23... Qa6 {[%clk
0:00:28.8]} 24. Bxf4 {[%clk 0:01:12.5]} 24... Bxf4 {[%clk 0:00:27]} 25. Qd5+
{[%clk 0:01:12.7]} 1-0

[Event "*** Titled Tuesday 3|2 Blitz"]
[Site "Chess.com"]
[Date "2015.08.04"]
[Round "7"]
[White "SenseiJulio"]
[Black "bugsbunny444"]
[Result "1-0"]
[WhiteElo "2533"]
[BlackElo "2306"]
[TimeControl "180+2"]
[EndTime "13:00:26 PDT"]
[Termination "SenseiJulio won by resignation"]

1. e4 {[%clk 0:03:01.9]} 1... e6 {[%clk 0:02:59.1]} 2. b3 {[%clk 0:03:02]} 2...
d5 {[%clk 0:02:59.9]} 3. Bb2 {[%clk 0:03:02.3]} 3... Nf6 {[%clk 0:03:00.3]} 4.
e5 {[%clk 0:03:02.3]} 4... Nfd7 {[%clk 0:03:01.2]} 5. Qg4 {[%clk 0:03:03.3]}
5... c5 {[%clk 0:03:01.3]} 6. f4 {[%clk 0:03:04.3]} 6... g6 {[%clk 0:03:01.9]}
7. Nf3 {[%clk 0:03:02.6]} 7... Bg7 {[%clk 0:03:02.5]} 8. Be2 {[%clk 0:03:00.9]}
8... O-O {[%clk 0:03:02.3]} 9. h4 {[%clk 0:02:57]} 9... f6 {[%clk 0:02:15.9]}
10. h5 {[%clk 0:02:54.3]} 10... Qe8 {[%clk 0:01:52.1]} 11. hxg6 {[%clk
0:02:52.9]} 11... Qxg6 {[%clk 0:01:51.2]} 12. Qxe6+ {[%clk 0:02:07.1]} 12... Kh8
{[%clk 0:01:41.9]} 13. Bd3 {[%clk 0:02:08.4]} 13... Nxe5 {[%clk 0:01:36.4]} 14.
Bxg6 {[%clk 0:02:04.7]} 14... Nxf3+ {[%clk 0:01:37.1]} 15. gxf3 {[%clk
0:02:05.7]} 15... Bxe6 {[%clk 0:01:38.2]} 16. Bxh7 {[%clk 0:02:03.7]} 16... Bf7
{[%clk 0:01:17.2]} 17. Nc3 {[%clk 0:02:04.7]} 17... Re8+ {[%clk 0:00:49.6]} 18.
Kf2 {[%clk 0:02:04]} 18... f5 {[%clk 0:00:48.8]} 19. Bxf5+ {[%clk 0:02:02.1]}
19... Kg8 {[%clk 0:00:49.5]} 20. Rag1 {[%clk 0:01:53.3]} 20... Kf8 {[%clk
0:00:18.3]} 21. Rxg7 {[%clk 0:01:53.6]} 21... d4 {[%clk 0:00:13.6]} 22. Rhh7
{[%clk 0:01:48.6]} 22... Bg8 {[%clk 0:00:09.7]} 23. Nb5 {[%clk 0:01:37.6]} 23...
Bxh7 {[%clk 0:00:10.5]} 24. Rxh7 {[%clk 0:01:39.2]} 24... Na6 {[%clk 0:00:10.7]}
25. Bg6 {[%clk 0:01:27.8]} 25... Kg8 {[%clk 0:00:10.7]} 26. Nxd4 {[%clk
0:01:20.8]} 26... cxd4 {[%clk 0:00:03.7]} 27. Bxd4 {[%clk 0:01:22.7]} 27... Kf8
{[%clk 0:00:03.5]} 28. Bf6 {[%clk 0:01:24.3]} 1-0

[Event "*** Titled Tuesday 3|2 Blitz"]
[Site "Chess.com"]
[Date "2015.08.04"]
[Round "7"]
[White "samolo"]
[Black "Gergo85"]
[Result "1-0"]
[WhiteElo "2504"]
[BlackElo "2321"]
[TimeControl "180+2"]
[EndTime "13:00:37 PDT"]
[Termination "samolo won by resignation"]

1. Nf3 {[%clk 0:03:01.9]} 1... Nf6 {[%clk 0:03:00.4]} 2. g3 {[%clk 0:03:03.8]}
2... g6 {[%clk 0:03:02]} 3. Bg2 {[%clk 0:03:05.7]} 3... Bg7 {[%clk 0:03:03.6]}
4. O-O {[%clk 0:03:07.6]} 4... O-O {[%clk 0:03:05.1]} 5. d3 {[%clk 0:03:08.8]}
5... d5 {[%clk 0:03:06.3]} 6. Nbd2 {[%clk 0:03:09.7]} 6... c5 {[%clk 0:03:05.8]}
7. e4 {[%clk 0:03:10.9]} 7... dxe4 {[%clk 0:03:04.1]} 8. dxe4 {[%clk 0:03:11.9]}
8... Nc6 {[%clk 0:03:04.6]} 9. Re1 {[%clk 0:03:13.2]} 9... e5 {[%clk 0:03:03.1]}
10. c3 {[%clk 0:03:14.6]} 10... Bg4 {[%clk 0:03:02.7]} 11. h3 {[%clk 0:03:15.5]}
11... Bxf3 {[%clk 0:03:03.5]} 12. Qxf3 {[%clk 0:03:14.1]} 12... Qc7 {[%clk
0:02:58.6]} 13. a4 {[%clk 0:03:14.7]} 13... Nd8 {[%clk 0:02:57.6]} 14. Nc4
{[%clk 0:03:14.6]} 14... Ne6 {[%clk 0:02:58.3]} 15. Be3 {[%clk 0:03:10]} 15...
Rfd8 {[%clk 0:02:51.8]} 16. Qe2 {[%clk 0:03:10.9]} 16... Ne8 {[%clk 0:02:50.9]}
17. h4 {[%clk 0:03:10.3]} 17... Nd6 {[%clk 0:02:50.4]} 18. Na3 {[%clk 0:03:11]}
18... c4 {[%clk 0:02:45.8]} 19. Red1 {[%clk 0:03:10.8]} 19... Rac8 {[%clk
0:02:43.4]} 20. Rd5 {[%clk 0:03:11.1]} 20... Qc6 {[%clk 0:02:30.2]} 21. Nb5
{[%clk 0:03:11.6]} 21... Ra8 {[%clk 0:02:10.7]} 22. Nxa7 {[%clk 0:03:03.7]}
22... Rxa7 {[%clk 0:02:10.8]} 23. Bxa7 {[%clk 0:03:03.9]} 23... Ra8 {[%clk
0:01:51.8]} 24. Be3 {[%clk 0:03:04.1]} 24... Nc7 {[%clk 0:01:02.3]} 25. Rc5
{[%clk 0:03:03.7]} 25... Qd7 {[%clk 0:01:03.4]} 26. Rd1 {[%clk 0:02:57.2]} 26...
Qe7 {[%clk 0:00:51.9]} 27. a5 {[%clk 0:02:54.7]} 27... h6 {[%clk 0:00:39.8]} 28.
h5 {[%clk 0:02:52.5]} 28... g5 {[%clk 0:00:34.6]} 29. f3 {[%clk 0:02:53.2]}
29... Bf8 {[%clk 0:00:34.9]} 30. Bh3 {[%clk 0:02:53.9]} 30... Ra6 {[%clk
0:00:22.2]} 31. Kg2 {[%clk 0:02:54.5]} 31... Nce8 {[%clk 0:00:15.4]} 32. Rcd5
{[%clk 0:02:52.2]} 32... Nc7 {[%clk 0:00:16.4]} 33. Rc5 {[%clk 0:02:52.9]} 33...
Nce8 {[%clk 0:00:17.6]} 34. Bg4 {[%clk 0:02:53.9]} 34... f6 {[%clk 0:00:18.6]}
35. Rcd5 {[%clk 0:02:48.3]} 35... Kg7 {[%clk 0:00:19]} 36. Bc5 {[%clk
0:02:48.5]} 36... Qc7 {[%clk 0:00:16.2]} 37. Bb4 {[%clk 0:02:49]} 37... Qc6
{[%clk 0:00:15.8]} 38. Qf2 {[%clk 0:02:47]} 38... Ra8 {[%clk 0:00:16.7]} 39.
R1d2 {[%clk 0:02:41.5]} 39... Rb8 {[%clk 0:00:16.9]} 40. Qa7 {[%clk 0:02:42.2]}
40... Rd8 {[%clk 0:00:17.7]} 41. Qb6 {[%clk 0:02:42.5]} 41... Qxb6 {[%clk
0:00:18.1]} 42. axb6 {[%clk 0:02:44.4]} 42... Kf7 {[%clk 0:00:19.5]} 43. Bf5
{[%clk 0:02:44.4]} 43... Ke7 {[%clk 0:00:20.5]} 44. f4 {[%clk 0:02:43.7]} 44...
gxf4 {[%clk 0:00:20.2]} 45. gxf4 {[%clk 0:02:45]} 45... exf4 {[%clk 0:00:22.1]}
46. Kf3 {[%clk 0:02:43.6]} 46... Kf7 {[%clk 0:00:23.5]} 47. Kxf4 {[%clk
0:02:43.2]} 47... Be7 {[%clk 0:00:15.4]} 48. Bg6+ {[%clk 0:02:43.8]} 48... Kf8
{[%clk 0:00:16.2]} 49. Bxe8 {[%clk 0:02:41.1]} 49... Kxe8 {[%clk 0:00:17.4]} 50.
Bxd6 {[%clk 0:02:41.5]} 1-0